Cogmind - Beta 13 @@@ ROGUE MODE // 2024.04.05 @ 18:33:01 Player: meetlok Result: Destroyed by S-10 Pest with Light Assault Rifle Performance ------------- Evolutions (0) 0 Regions Visited (1) 200 Robots Destroyed (32) 160 Value Destroyed (685) 685 Prototype IDs (2) 40 Alien Tech Used (0) 0 Bonus (0) 0 TOTAL SCORE: 1085 Bonus ------- None Cogmind --------- Core Integrity 0/250 Matter 300/300 Energy 100/100 System Corruption 2% Temperature Warm (103) Movement Walking (190) Ox1 Location -10/Materials Parts ------- > --- POWER (1) -------- (None) > --- PROPULSION (2) --- Aluminum Leg > --- UTILITY (2) ------ Medium Storage Unit Hacking Suite > --- WEAPON (2) ------- Heavy Hammer Heavy Hammer > --- INVENTORY (10) --- Large Storage Unit High-capacity Matter Pod (200) Weight Redist. System Sensor Array Signal Interpreter Terrain Scan Processor Beam Cannon Mini Grenade Launcher Datajack Mining Laser Peak State ------------ > --- POWER ------------ Light Nuclear Core > --- PROPULSION ------- Aluminum Leg Aluminum Leg > --- UTILITY ---------- Medium Storage Unit Hacking Suite > --- WEAPON ----------- Heavy Hammer Heavy Hammer > --- INVENTORY -------- Large Storage Unit High-capacity Matter Pod Weight Redist. System Sensor Array Signal Interpreter Terrain Scan Processor Light Cannon Mini Grenade Launcher Datajack Mining Laser [Rating: 14] Favorites ----------- Power Improved Ion Engine Engine Improved Ion Engine Power Core Light Nuclear Core Propulsion Aluminum Leg Leg Aluminum Leg Wheel Compact Wheel Utility Hacking Suite Device Tractor Beam Storage Medium Storage Unit Hackware Hacking Suite Weapon EM Pulse Gun Energy Gun EM Pulse Gun Launcher Mini Grenade Launcher Impact Weapon Heavy Hammer Build | -11 -10 ------- Run | Yrd Mat Slots Evolved . | . . Power . | . . Propulsion . | . . Utility . | . . Weapon . | . . Parts Attached 27 | 6 21 Power 5 | 1 4 Engine 4 | 1 3 Core 1 | . 1 Reactor . | . . Propulsion 6 | 2 4 Treads . | . . Leg 4 | . 4 Wheel 2 | 2 . Hover . | . . Flight . | . . Utility 4 | 1 3 Device 1 | . 1 Storage 2 | 1 1 Processor . | . . Hackware 1 | . 1 Protection . | . . Artifact . | . . Weapon 12 | 2 10 Energy Gun 8 | 2 6 Energy Cannon . | . . Ballistic Gun . | . . Ballistic Cannon . | . . Launcher 2 | . 2 Special Weapon . | . . Impact Weapon 2 | . 2 Slashing Weapon . | . . Piercing Weapon . | . . Special Melee Weapon . | . . Unidentified Prototypes . | . . Parts Lost 5 | . 5 Power 2 | . 2 Propulsion 2 | . 2 Utility 1 | . 1 Weapon . | . . Highest Loss Streak 2 | . 2 To Critical Strikes . | . . Average Slot Usage (%) 96 | . 96 Engine 11 | . 11 Core 2 | . 2 Leg 24 | . 24 Wheel 2 | . 2 Storage 14 | . 14 Hackware 11 | . 11 Energy Gun 21 | . 21 Launcher 3 | . 3 Impact Weapon 3 | . 3 Naked Turns . | . . Heaviest Build 21 | 11 21 Greatest Support 26 | 26 26 Greatest Overweight (x) 1 | . 1 Average Overweight (x) . | . . Largest Inventory Capacity 10 | 8 10 Average Capacity 9 | 7 9 Most Carried 10 | 4 10 Average Carried 8 | 2 8 Final Capacity 10 | 8 10 Final Carried 10 | 4 10 Class Distribution -------------------- 91% | Mutant 8% | Scavenger-Mutant Dominant Class ---------------- Mutant | -10/Materials Resources | -11 -10 ----------- Run | Yrd Mat Matter Collected 675 | 239 436 Remotely 31 | . 31 Salvage Created 1158 | 65 1093 Parts 70 | 3 67 Haulers Intercepted 2 | . 2 Recyclers Shooed 3 | . 3 Parts Field Recycled . | . . Retrieved Matter . | . . Parts Self-Destructed . | . . Prevented . | . . Kills | -11 -10 ------- Run | Yrd Mat Combat Hostiles Destroyed 19 | . 19 Guns 9 | . 9 AOE 6 | . 6 Classes Destroyed 7 | 1 6 Worker 1 | . 1 Builder 3 | . 3 Hauler 2 | . 2 Recycler 5 | 1 4 Operator 2 | . 2 Swarmer 4 | . 4 Grunt 15 | . 15 Best Kill Streak 8 | 1 8 Combat Bots Only 4 | . 4 Max Kills in Single Turn 2 | 1 2 Gunslinging . | . . Exploded 1 | . 1 Melee . | . . Uniques/NPCs Destroyed . | . . Combat | -11 -10 -------- Run | Yrd Mat Hostile Shots Fired 125 | . 125 Missed 31 | . 31 Damage Taken 966 | . 966 Core 255 | . 255 Absorbed by Shields . | . . Core Remaining (%) 100 | 100 . Volleys Fired 66 | 3 63 Largest 2 | 2 2 Hottest 80 | 80 80 Shots Fired 129 | 6 123 Gun 122 | 6 116 Cannon . | . . Launcher 7 | . 7 Special . | . . Kinetic . | . . Thermal 56 | 3 53 Explosive 7 | . 7 Electromagnetic 66 | 3 63 Robot Hit Streak 11 | 5 11 Robot Miss Streak 6 | . 6 Penetration Max . | . . Secondary Targets 3 | . 3 Max Gunslinging Chain 1 | . 1 Shots Hit Robots 91 | 5 86 Core Hits 48 | 2 46 Critical Kills . | . . Critical Parts Destroyed 2 | . 2 Critical Strikes 3 | . 3 Corrupt 1 | . 1 Smash 2 | . 2 Melee Attacks 18 | . 18 Impact 18 | . 18 Slashing . | . . Piercing . | . . Sneak Attacks . | . . Combat Hostiles . | . . Follow-up Attacks 1 | . 1 Damage Inflicted 2005 | 59 1946 Guns 951 | 59 892 Cannons . | . . Explosions 591 | . 591 Melee 455 | . 455 Ramming 8 | . 8 Kinetic . | . . Thermal 536 | 34 502 Explosive 407 | . 407 Electromagnetic 599 | 25 574 Impact 455 | . 455 Slashing . | . . Piercing . | . . Highest Corruption 2 | . 2 Average Corruption 2 | . 2 Corruption Purged . | . . Corruption Blocked . | . . Effects 7 | . 7 Matter Fused 2 | . 2 Heat Flow Errors 3 | . 3 Energy Discharges 2 | . 2 Overload Shots . | . . Overflow Damage 172 | . 172 Projectiles . | . . Explosions 2 | . 2 Melee 170 | . 170 Knockbacks 3 | . 3 Impact 3 | . 3 Kinetic . | . . Secondary . | . . Self-Inflicted Damage 62 | . 62 Shots 2 | . 2 Rammed . | . . Targets Rammed 2 | . 2 Kicked 2 | . 2 Crushed . | . . Highest Temperature 330 | 36 330 Average Temperature 101 | 17 104 Received Heat Transfer 225 | . 225 Effects 2 | . 2 Energy Bleed 2 | . 2 Siege Activations . | . . Robots Corrupted . | . . Combat Hostiles . | . . Parts Fried 2 | . 2 Impact Corruptions 9 | . 9 Robots Melted . | . . Combat Hostiles . | . . Parts Melted . | . . Heat Transferred 1100 | 75 1025 Parts Sabotaged . | . . Parts Stolen . | . . Parts Stripped . | . . Power Chain Reactions 4 | . 4 Alert | -11 -10 ------- Run | Yrd Mat Peak Influence 392 | 5 392 Initial 3 | . 3 Average 226 | 1 237 Maximum Alert Level 1 | . 1 Low Security (%) 26 | 100 22 Level 1 73 | . 77 Level 2 . | . . Level 3 . | . . Level 4 . | . . Level 5 . | . . High Security . | . . Max Security . | . . Squads Dispatched 7 | . 7 Investigation 5 | . 5 Extermination . | . . Reinforcement 2 | . 2 Assault . | . . Garrison . | . . Intercept . | . . Searches Triggered . | . . Construction Impeded . | . . Haulers Reinforced . | . . Active Scanning Responses . | . . Cargo Convoy Interrupts . | . . Stealth | -11 -10 --------- Run | Yrd Mat Distress Signals 3 | . 3 Communications Jammed . | . . Distress Signals . | . . Times Spotted 41 | . 41 Peak Tracking Total 5 | . 5 Tactical Retreats 1 | . 1 Traps | -11 -10 ------- Run | Yrd Mat Traps Triggered 3 | . 3 Indirectly . | . . Trap Hack Attempts . | . . Triggered . | . . Disarmed . | . . Reprogrammed . | . . Reused . | . . Traps Extracted . | . . Installed . | . . Triggered . | . . Machines | -11 -10 ---------- Run | Yrd Mat Machines Disabled 4 | . 4 Max in Single Turn 2 | . 2 Machines Repaired . | . . Machines Dismantled . | . . Machines Sabotaged . | . . Overloaded Fab Kills . | . . Hacking | -11 -10 --------- Run | Yrd Mat Machines Accessed 8 | . 8 Terminals 6 | . 6 Fabricators . | . . Repair Stations . | . . Recycling Units 2 | . 2 Scanalyzers . | . . Garrison Access . | . . Total Hacks 28 | . 28 Successful 13 | . 13 Failed 15 | . 15 Catastrophic 2 | . 2 Database Lockouts . | . . Manual 4 | . 4 Terminals 21 | . 21 Fabricators . | . . Repair Stations . | . . Recycling Units 7 | . 7 Scanalyzers . | . . Garrison Access . | . . Terminal Hacks 10 | . 10 Robot Analysis 1 | . 1 Prototype ID Bank 1 | . 1 Terminal Index 1 | . 1 Alert Level 1 | . 1 Dispatch Records 2 | . 2 Investigation Status 2 | . 2 Zone Layout 2 | . 2 Fabricator Hacks . | . . Repair Station Hacks . | . . Recycling Unit Hacks 3 | . 3 Report Inventory 2 | . 2 Retrieve Matter 1 | . 1 Scanalyzer . | . . Garrison Access Hacks . | . . Unauthorized Hacks . | . . Terminals . | . . Fabricators . | . . Repair Stations . | . . Recycling Units . | . . Scanalyzers . | . . Garrison Access . | . . Data Cores Recovered 1 | . 1 Used . | . . Hacking Detections 7 | . 7 Full Trace Events 4 | . 4 Feedback Events . | . . Feedback Blocked . | . . Robot Schematics Acquired . | . . Robots Built . | . . Authchips . | . . Time . | . . Total Robot Build Rating . | . . Part Schematics Acquired . | . . Parts Built . | . . Authchips . | . . Time . | . . Total Part Build Rating . | . . Parts Repaired . | . . Time . | . . Parts Recycled . | . . Recycled Matter . | . . Retrieved Matter 63 | . 63 Retrieved Components . | . . Parts Scanalyzed . | . . Part Schematics Acquired . | . . Parts Damaged . | . . Bothacking | -11 -10 ------------ Run | Yrd Mat Used RIF Installer . | . . Robots Hacked . | . . Non-combat . | . . Combat . | . . Robot Hacks Applied . | . . Relay Couplers Released . | . . Fabnet Peak Effective % . | . . Robots Rewired . | . . Allies Hacked . | . . Hacks Repelled . | . . Allies | -11 -10 -------- Run | Yrd Mat Total Allies . | . . Largest Group . | . . Highest-Rated Group . | . . Highest-Rated Ally . | . . Total Orders . | . . Ally Attacks . | . . Total Damage . | . . Kills . | . . Allies Corrupted . | . . Allies Melted . | . . Intel | -11 -10 ------- Run | Yrd Mat Robot Analysis Total 1 | . 1 Derelict Logs Recovered . | . . Drone Launches . | . . Drone Recoveries . | . . Exploration | -11 -10 ------------- Run | Yrd Mat Turns Passed 1220 | 57 1163 Spaces Moved 718 | 37 681 Core 3 | 3 . Treads . | . . Legs 625 | . 625 Wheels 90 | 34 56 Hover . | . . Flight . | . . Fastest Speed 50 | 50 90 Average Speed 120 | 87 122 Slowest Speed 190 | 100 190 Overloaded Moves . | . . Propulsion Burnouts . | . . Robots Hopped . | . . Cave-ins Triggered . | . . Exploration Rate (%) 46 | 4 89 Regions Visited 1 Branch Regions . Pre-discovered Areas . | . . Known Exits Taken . | . . Unknown Exits Taken 1 | 1 . Scrap Searched . | . . Spaces Dug . | . . Terrain Destroyed 45 | . 45 Melee . | . . Projectile . | . . AOE 45 | . 45 Terrain Rammed . | . . Walls Destroyed . | . . Machines Disabled . | . . Actions | -11 -10 --------- Run | Yrd Mat Total 920 | 55 865 Wait 34 | . 34 Move 717 | 36 681 Hop . | . . Pick Up 34 | 10 24 Fast Attach 4 | . 4 Attach 8 | 6 2 Detach . | . . Swap 15 | . 15 Drop 24 | . 24 Fire 66 | 3 63 Melee 16 | . 16 Ram . | . . Kick 2 | . 2 Crush . | . . Escape Stasis . | . . Rewire . | . . Trap . | . . Miscellaneous . | . . Route ------- -11/Scrapyard -10/Materials (discovered 3 exits: [*Mat x2] / [*Min]) History --------- Turn | Location | Event 2 | -11/Scrapyard | Met Revision 17 24 | -11/Scrapyard | Discovered new exit (range 15) 58 | -11/Scrapyard | Entered Materials 479 | -10/Materials | Discovered new exit (range 4) 668 | -10/Materials | Build established: Mutant 754 | -10/Materials | Discovered new exit (range 7) 1119 | -10/Materials | Core integrity fell below 50% 1128 | -10/Materials | Discovered new exit (range 12) 1159 | -10/Materials | Core integrity fell below 20% 1221 | -10/Materials | Destroyed by S-10 Pest with Light Assault Rifle Last Messages --------------- Destroyed Lgt. Ion Engine. S-10 Pest system corrupted by crushing effect. S-10 Pest suffers critical hit (Smash). Destroyed Flight Unit. S-10 Pest system corrupted by crushing effect. S-10 Pest system terminally corrupted. K-01 Serf collects debris. Destroyed Flight Unit. S-10 Pest system corrupted by crushing effect. System corrupted: Heat flow error (+292). S-10 Pest knocked back. K-01 Serf collects debris. Lgt. Ion Engine destroyed. K-01 Serf collects debris. Destroyed Lgt. Ion Engine. S-10 Pest system corrupted by crushing effect. S-10 Pest misfires. S-10 Pest system terminally corrupted. Flight Unit fried. K-01 Serf collects debris. Map ----- +----------------------------------------------------+ | ########?????# # " # # # | | ?????????????# ==! # "" # # # "" | | ?????????????# ==! # "" # # # "Y | | ?????????????# = ! # """ + + # " | | ?????????????# = !# "" # # # | | ?????????????# # """ ## ## # """ | | ?????????????# # """ ## ## #[ """ | | ?????????????# "T" # """ ## ## # """ | | ?????????????########### " ## ####### | | ???????????????????????# !## #?????####### | | ????????????????????????########+##??????????? | | ???????????????????????????# #??????????? | | ???????????????????????????# #??????????? | | ??????????????????####?????###### #??????????? | | ??????????????????# ##?????????#???????????? | | ???????????????????# #???????#####?????????? | | ??????????########### ########## ########### | | ??????????# ! # | | ??????????# # #### | | ??????????# """ + """ """ """ #??? | | ??????????# """"" # """ """ """ #??? | | ??????????# """"" # """ """ """ #??? | | ??????????# """"" # #??? | | ??????????# """ # k #??? | | ??????????# #s% % #??? | | ?????###### # @%######### ^ #??? | | ?????#!![#######+### #???????# ! #??? | | ?????#!![ ^ #???????# #??? | | ?????#|| #???????# """ #??? | | ?????#|| #???????# """"" #??? | | ?????#/ ###### ^ ^ #???????# """"" #??? | | ?????#/ #????# ]]#???????? "???? #??? | | ?????#####????# ! #???????? ????? +??? | | ??????????????# [ ] #???????????????? ???? | | ??????????????# =% #?????????????????????? | | ????????????#####+## #?????????????????????? | | ????????????# # #?????????????????????? | | ????????????# ] # #?????????????????????? | | ????????????# # #?????????????????????? | | ????????????# # #?????????????????????? | | ????????????# # < #?????????????????????? | | ????????????#! # #?????????????????????? | | ????????????############?????????????????????? | | ?????????????????????????????????????????????? | | ?????????????????????????????????????????????? | | ?????????????????????????????????????????????? | | ?????????????????????????????????????????????? | | ?????????????????????????????????????????????? | | ?????????????????????????????????????????????? | | ?????????????????????????????????????????????? | +----------------------------------------------------+ Best States ------------- Heat Dissipation 25 Energy Generation 14 Energy Capacity 265 Matter Stores 300 Matter Capacity 300 Sight Range 16 Terrain Scan Density 10 Evasion (%) 55 Offensive Hacking 10 Item Schematics ----------------- None Robot Schematics ------------------ None Fabricated ------------ Nothing Alien Tech Used ----------------- None Achievements -------------- None Challenges ------------ None Game ------ Seed ArcFocalMachine Manual? 0 Play Time 00:27:13 Cumulative 21.2 hours Start 2024.04.05 @ 18:06:39 End 2024.04.05 @ 18:33:01 Sessions 1 Manual Loads 0 Difficulty Rogue Special Mode None Game No. 11 Rogue 11 Adventurer 0 Explorer 0 Win Type - Total 0 Types 0/0/0/0/0/0/0/0/0 Lore% 7 Gallery% 21 Achievement% 15 Wizard Run 0 Options --------- Layout 1 ASCII 0 Keyboard 0 Movement Numpad Keybinds 0 Fullscreen 1 Font 24/Smallcaps Map View 50x35 Zoom Use 0% Tactical HUD 0 Map Filters NONE Filters NONE Steam 1 RUN: b2bfe21e-5f38-440c-9324-73279d829a6b